bitfinex/quotes_SOLUSD_20251126
["timestamp","ask_amount","ask_price","bid_price","bid_amount"]
[1764171964547,13.03134093,136.28,136.25,0.7]
[1764171964851,13.03134093,136.26,136.25,0.2]
[1764171965041,13.03134093,136.26,136.21,38.72634896]
[1764171965241,13.03134093,136.24,136.21,25.69500803]
[1764171965542,13.03134093,136.24,136.2,0.1]
[1764171966859,13.03134093,136.24,136.21,0.69]
[1764171967441,13.03134093,136.23,136.21,0.69]
[1764171967639,8.80994492,136.25,136.21,0.69]
[1764171967640,8.80994492,136.25,136.21,8.03158184]
[1764171967866,13.03134093,136.24,136.21,0.69]
[1764171968054,13.03134093,136.24,136.22,0.69]
[1764171968354,8.80994492,136.25,136.21,0.69]
[1764171968563,13.03134093,136.24,136.21,0.69]
[1764171969442,13.03134093,136.24,136.22,7.34106592]
[1764171969629,13.03134093,136.25,136.22,7.34106592]
[1764171969832,13.03134093,136.24,136.22,7.34106592]
[1764171970039,13.03134093,136.24,136.21,7.34141659]
[1764171970451,13.03134093,136.24,136.22,0.69]
[1764171970656,8.80994492,136.25,136.22,0.69]
[1764171970859,19.588864,136.26,136.22,0.69]
[1764171971159,13.03134093,136.25,136.22,0.69]
[1764171971354,29.34020493,136.26,136.22,0.69]
[1764171971563,13.03134093,136.24,136.22,0.69]
[1764171972343,13.03134093,136.24,136.2,7.44206788]
[1764171972532,16.308864,136.26,136.21,0.69]
[1764171972732,8.80994492,136.25,136.21,0.69]
[1764171972954,23.79599252,136.26,136.21,0.69]
[1764171973341,7.48712852,136.26,136.21,0.69]
[1764171973960,7.48712852,136.26,136.21,26.38547397]
[1764171974353,7.48712852,136.26,136.22,0.7]
[1764171974957,7.48712852,136.23,136.2,0.8]
[1764171975163,7.48712852,136.24,136.21,0.7]
[1764171975348,9.50994492,136.27,136.21,0.7]
[1764171975349,7.48712852,136.26,136.21,0.7]
[1764171975668,7.48712852,136.25,136.22,7.34106592]
[1764171975989,12.08994492,136.27,136.22,7.34106592]
[1764171976167,7.48712852,136.25,136.22,7.34106592]
[1764171976359,7.48712852,136.25,136.22,0.7]
[1764171976360,7.48712852,136.24,136.22,0.7]
[1764171976867,8.80994492,136.25,136.22,0.7]
[1764171977073,7.48712852,136.24,136.22,0.7]
[1764171977365,16.29707344,136.25,136.22,0.7]
[1764171977568,7.48712852,136.23,136.2,0.8]
[1764171977776,7.48712852,136.23,136.21,0.7]
[1764171978154,7.48712852,136.23,136.2,0.1]
[1764171978358,7.48712852,136.22,136.2,0.8]
[1764171979456,10.76712852,136.24,136.2,0.8]
[1764171979652,10.76712852,136.24,136.21,7.34160487]
[1764171980051,10.76712852,136.24,136.2,0.1]
[1764171980052,7.48712852,136.22,136.2,0.1]
[1764171980248,19.57707344,136.21,136.2,0.1]
[1764171980458,20.27707344,136.21,136.2,0.1]
[1764171980849,20.56139658,136.21,136.2,0.1]
[1764171981660,20.56139658,136.21,136.14,0.7]
[1764171981661,7.48712852,136.15,136.14,0.7]
[1764171981853,7.48712852,136.15,136.14,8.04537975]
[1764171982054,7.48712852,136.15,136.12,0.7]
[1764171982364,7.48712852,136.14,136.13,0.7]
[1764171982547,7.48712852,136.15,136.13,0.7]
[1764171982745,7.48712852,136.14,136.13,0.7]
[1764171983351,8.80994492,136.16,136.11,8.04682959]
[1764171983556,7.48712852,136.14,136.11,7.34682959]
[1764171983755,7.48712852,136.14,136.12,0.7]
[1764171984767,7.48712852,136.13,136.08,10.62851226]
[1764171984973,7.48712852,136.12,136.09,0.7]
[1764171985572,7.48712852,136.12,136.09,8.04779133]
[1764171985762,8.80994492,136.15,136.1,0.7]
[1764171985970,7.48712852,136.14,136.1,0.7]
[1764171986277,7.48712852,136.15,136.1,0.7]
[1764171986476,7.48712852,136.14,136.1,0.7]
[1764171986663,3.14916383,136.13,136.1,0.7]
[1764171986978,9.50994492,136.16,136.1,0.7]
[1764171986979,3.14916383,136.14,136.1,0.7]
[1764171987477,3.14916383,136.15,136.1,0.7]
[1764171987781,3.14916383,136.18,136.12,3.14916383]
[1764171988090,3.14916383,136.18,136.13,0.7]
[1764171988572,7.4935641,136.18,136.13,0.7]
[1764171989068,7.4935641,136.17,136.13,0.7]
[1764171989468,7.4935641,136.16,136.13,0.7]
[1764171989768,7.4935641,136.15,136.13,0.7]
[1764171989969,7.4935641,136.15,136.13,8.04574238]
[1764171990156,7.4935641,136.16,136.13,8.04574238]
[1764171990348,8.80994492,136.2,136.13,0.7]
[1764171990349,0.7,136.18,136.13,0.7]
[1764171990549,7.4935641,136.16,136.13,0.7]
[1764171990773,7.4935641,136.15,136.09,3.28]
[1764171990988,7.4935641,136.14,136.11,0.7]
[1764171991271,9.50994492,136.16,136.11,0.7]
[1764171991569,7.4935641,136.15,136.11,0.7]
[1764171991776,7.4935641,136.15,136.12,7.346459]
[1764171991957,8.80994492,136.16,136.12,7.346459]
[1764171992161,7.4935641,136.16,136.13,0.7]
[1764171992357,16.30350902,136.17,136.13,0.7]
[1764171992562,16.308864,136.19,136.13,0.7]
[1764171992563,8.80994492,136.19,136.13,0.7]
[1764171992873,7.4935641,136.17,136.13,0.7]
[1764171993259,7.4935641,136.16,136.13,0.7]
[1764171993773,7.4935641,136.16,136.14,7.34537975]
[1764171993964,8.80994492,136.19,136.13,8.04579343]
[1764171994164,7.4935641,136.16,136.13,8.04577587]
[1764171994564,7.4935641,136.15,136.13,0.7]
[1764171994764,7.4935641,136.16,136.1,33.2099491]
[1764171994971,7.4935641,136.16,136.14,0.7]
[1764171995175,7.4935641,136.16,136.1,33.2099491]
[1764171995176,8.1935641,136.15,136.08,0.7]
[1764171995371,8.80994492,136.14,136.09,0.7]
[1764171995684,8.80994492,136.17,136.09,3.98]
[1764171995886,7.4935641,136.16,136.1,7.4935641]
[1764171996188,7.4935641,136.15,136.1,0.7]
[1764171996381,7.4935641,136.15,136.11,0.7]
[1764171996982,8.80994492,136.17,136.11,0.7]
[1764171996983,16.308864,136.2,136.12,7.4935641]
[1764171997180,5.83993946,136.27,136.13,7.4935641]
[1764171997181,7.4935641,136.19,136.13,7.4935641]
[1764171997676,7.4935641,136.19,136.15,7.34484024]
[1764171998071,7.4935641,136.19,136.16,0.7]
[1764171999178,7.4935641,136.18,136.16,0.7]
[1764171999705,8.80994492,136.16,136.08,0.7]
[1764171999997,7.4935641,136.11,136.09,0.7]
[1764172000200,0.7,136.15,136.09,0.7]
[1764172000201,8.80994492,136.14,136.09,0.7]
[1764172000369,7.4935641,136.11,136.09,0.7]
[1764172000566,9.50994492,136.15,136.09,0.7]
[1764172000876,7.4935641,136.13,136.09,0.7]
[1764172001080,7.4935641,136.12,136.09,0.7]
[1764172001471,3.98,136.15,136.09,0.7]
[1764172001672,7.4935641,136.12,136.09,0.7]
[1764172001871,7.4935641,136.13,136.1,7.34753857]
[1764172002376,8.80994492,136.19,136.11,0.7]
[1764172002574,7.4935641,136.15,136.11,0.7]
[1764172002775,7.4935641,136.13,136.1,25.716385]
[1764172002974,7.4935641,136.13,136.1,26.416385]
[1764172003173,7.4935641,136.13,136.11,0.7]
[1764172003792,7.4935641,136.13,136.12,7.346459]
[1764172003995,8.80994492,136.16,136.12,7.346459]
[1764172004216,12.70175899,136.21,136.13,0.68]
[1764172004372,7.4935641,136.18,136.13,3.96]
[1764172004575,7.4935641,136.18,136.14,0.68]
[1764172004771,7.4935641,136.19,136.14,0.68]
[1764172004972,7.4935641,136.2,136.14,8.1735641]
[1764172005188,7.4935641,136.2,136.14,0.68]
[1764172005511,3.28,136.23,136.15,0.68]
[1764172005512,7.4935641,136.18,136.15,0.68]
[1764172005879,7.4935641,136.18,136.16,7.34430082]
[1764172006096,7.4935641,136.19,136.16,7.34430082]
[1764172006295,7.4935641,136.19,136.16,8.02430082]
[1764172006682,7.4935641,136.18,136.14,8.0249403]
[1764172007202,7.4935641,136.18,136.15,0.68]
[1764172007604,7.4935641,136.19,136.15,0.68]
[1764172007799,7.4935641,136.19,136.15,8.02461107]
[1764172007982,7.4935641,136.18,136.16,0.68]
[1764172008295,7.4935641,136.17,136.13,3.96]
[1764172008479,7.4935641,136.16,136.13,18.36420493]
[1764172008897,7.4935641,136.16,136.13,19.04420493]
[1764172009401,7.4935641,136.15,136.13,0.68]
[1764172009593,0.66,136.19,136.13,0.68]
[1764172009594,7.4935641,136.16,136.13,0.68]
[1764172009898,7.4935641,136.16,136.14,7.34537975]
[1764172010085,7.4935641,136.2,136.14,7.34537975]
[1764172010285,7.4935641,136.19,136.15,0.68]
[1764172010482,7.4935641,136.19,136.12,3.28]
[1764172010483,8.80994492,136.21,136.13,0.68]
[1764172010693,7.4935641,136.15,136.13,0.68]
[1764172010894,3.28,136.2,136.13,0.68]
[1764172010895,16.308864,136.2,136.13,0.68]
[1764172011078,7.4935641,136.21,136.13,0.68]
[1764172011278,16.308864,136.24,136.13,0.68]
[1764172011279,7.4935641,136.19,136.13,0.68]
[1764172011614,7.4935641,136.17,136.13,0.68]
[1764172011795,7.4935641,136.16,136.13,0.68]
[1764172012101,7.4935641,136.16,136.13,8.02579019]
[1764172012582,7.4935641,136.16,136.13,26.39058854]
[1764172013285,7.4935641,136.16,136.13,8.02579019]
[1764172013518,7.4935641,136.16,136.14,0.68]
[1764172013881,9.46994492,136.19,136.14,0.68]
[1764172014206,7.4935641,136.16,136.13,7.34573351]
[1764172014610,7.4935641,136.16,136.13,8.02573351]
[1764172015178,7.4935641,136.15,136.1,0.68]
[1764172015486,7.4935641,136.13,136.1,3.28]
[1764172015688,7.4935641,136.14,136.11,0.68]
[1764172015885,7.4935641,136.13,136.11,0.68]
[1764172016096,7.4935641,136.14,136.11,0.68]
[1764172016301,18.35670754,136.19,136.11,0.68]
[1764172016302,7.4935641,136.15,136.11,0.68]
[1764172016506,7.4935641,136.15,136.11,26.39425577]
[1764172016685,7.4935641,136.14,136.11,26.39425577]
[1764172016883,7.34063666,136.23,136.12,0.68]
[1764172017102,7.4935641,136.16,136.12,3.96]
[1764172017408,7.4935641,136.15,136.12,0.68]
[1764172018011,7.4935641,136.15,136.13,7.34591934]
[1764172019015,7.4935641,136.14,136.11,7.34689563]
[1764172019189,7.4935641,136.13,136.11,7.34689563]
[1764172019508,7.4935641,136.12,136.11,7.34689563]
[1764172019801,7.4935641,136.13,136.11,8.02689563]
[1764172020188,8.80994492,136.16,136.11,8.02689563]
[1764172020389,9.58242458,136.25,136.12,3.96]
[1764172020592,7.4935641,136.23,136.17,7.4935641]
[1764172020822,0.66,136.24,136.13,1.41459193]
[1764172020983,9.58242458,136.28,136.15,7.4935641]
[1764172021187,7.4935641,136.22,136.14,3.96]
[1764172021422,7.4935641,136.19,136.15,0.68]
[1764172022290,7.4935641,136.17,136.15,0.68]
[1764172022505,7.4935641,136.18,136.15,0.68]
[1764172022707,7.4935641,136.19,136.15,8.02476434]
[1764172022894,25.11880892,136.23,136.16,0.68]
[1764172023217,7.4935641,136.21,136.16,0.68]
[1764172023503,7.4935641,136.23,136.17,10.7735641]
[1764172023717,7.4935641,136.23,136.18,0.68]
[1764172023887,7.4935641,136.22,136.18,0.68]
[1764172024084,7.4935641,136.23,136.18,0.68]
[1764172024507,7.4935641,136.23,136.18,8.02311839]
[1764172024902,7.4935641,136.23,136.19,0.68]
[1764172025408,23.64832076,136.25,136.19,0.68]
[1764172025409,7.4935641,136.24,136.19,0.68]
[1764172025612,16.308864,136.25,136.19,0.68]
[1764172025800,7.4935641,136.24,136.19,0.68]
[1764172025995,7.4935641,136.23,136.19,0.68]
[1764172026515,7.4935641,136.23,136.2,7.3421439]
[1764172026713,7.4935641,136.23,136.19,8.02253211]
[1764172026905,7.4935641,136.23,136.19,0.68]
[1764172027105,7.4935641,136.23,136.2,0.69]
[1764172027899,7.4935641,136.24,136.2,0.69]
[1764172028298,7.4935641,136.23,136.2,0.69]
[1764172028546,7.4935641,136.22,136.18,26.39127771]
[1764172028725,7.4935641,136.22,136.19,0.69]
[1764172028890,7.4935641,136.23,136.19,0.69]
[1764172029090,7.4935641,136.22,136.19,0.69]
[1764172029504,7.4935641,136.2,136.15,18.36146518]
[1764172029707,7.4935641,136.19,136.16,11.3141145]
[1764172029920,7.4935641,136.19,136.16,3.97]
[1764172030097,7.4935641,136.19,136.17,0.69]
[1764172030297,16.30350902,136.24,136.17,0.69]
[1764172030298,8.80994492,136.23,136.17,0.69]
[1764172030517,7.4935641,136.2,136.18,7.3432222]
[1764172030692,16.308864,136.25,136.18,7.3432222]
[1764172031019,7.4935641,136.22,136.19,0.69]
[1764172031212,9.48994492,136.24,136.18,7.3432222]
[1764172031602,7.4935641,136.21,136.18,7.3432222]
[1764172031990,7.4935641,136.21,136.18,8.0332222]
[1764172032216,7.4935641,136.21,136.19,0.69]
[1764172032431,7.4935641,136.21,136.18,8.0332222]
[1764172032731,13.04098874,136.21,136.19,0.69]
[1764172033232,13.04098874,136.21,136.18,7.3432222]
[1764172033414,13.04098874,136.2,136.18,8.0332222]
[1764172033822,23.64854686,136.25,136.19,0.69]
[1764172034025,24.32854686,136.25,136.19,0.69]
[1764172034545,24.32854686,136.25,136.19,8.03255271]
[1764172035139,13.04098874,136.23,136.19,26.38926025]
[1764172035329,13.04098874,136.23,136.2,0.71]
[1764172035917,13.04098874,136.23,136.2,3.99]
[1764172036327,13.04098874,136.23,136.21,0.71]
[1764172037336,13.04098874,136.23,136.21,8.05146595]
[1764172038245,13.04098874,136.23,136.21,0.71]
[1764172038916,13.04098874,136.23,136.21,8.05146668]
[1764172039112,13.04098874,136.22,136.2,10.62202261]
[1764172039324,8.80994492,136.24,136.19,0.71]
[1764172039526,13.04098874,136.21,136.17,3.28]
[1764172039742,13.04098874,136.21,136.19,0.71]
[1764172040518,13.04098874,136.21,136.19,8.05242979]
[1764172040713,13.04098874,136.21,136.19,0.71]
[1764172041017,13.04098874,136.2,136.19,0.71]
[1764172041232,13.04098874,136.21,136.19,0.71]
[1764172041743,33.14892357,136.24,136.19,0.71]
[1764172041942,13.04098874,136.21,136.19,0.71]
[1764172042322,25.80880892,136.24,136.19,8.05264034]
[1764172042523,13.04098874,136.21,136.19,8.05264034]
[1764172042826,13.04098874,136.21,136.19,8.05264041]
[1764172043126,1.99999999,136.28,136.19,8.05264041]
[1764172043127,18.3444805,136.29,136.2,0.71]
[1764172043327,3.28,136.28,136.21,3.28]
[1764172043643,13.04098874,136.29,136.22,13.04098874]
[1764172043948,13.04098874,136.27,136.23,0.71]
[1764172044445,13.04098874,136.26,136.23,3.99]
[1764172044618,13.04098874,136.26,136.23,11.33005738]
[1764172044819,13.04098874,136.26,136.24,0.71]
[1764172045021,13.04098874,136.25,136.24,0.71]
[1764172045332,13.04098874,136.26,136.24,0.71]
[1764172046227,13.04098874,136.26,136.19,13.18315031]
[1764172046415,13.04098874,136.24,136.22,0.71]
[1764172046621,13.04098874,136.24,136.23,7.34052704]
[1764172046845,13.04098874,136.25,136.23,7.34052704]
[1764172047043,13.04098874,136.25,136.23,0.71]
[1764172047422,13.04098874,136.24,136.22,7.34090579]
[1764172047621,0.69,136.27,136.22,7.34090579]
[1764172047820,13.04098874,136.24,136.22,8.05090579]
[1764172048919,13.04098874,136.23,136.2,0.71]
[1764172049226,13.04098874,136.22,136.2,0.71]
[1764172049627,8.80994492,136.26,136.2,26.40750366]
[1764172049836,13.04098874,136.23,136.2,26.40750366]
[1764172050036,13.04098874,136.23,136.21,0.71]
[1764172050746,13.04098874,136.22,136.19,3.99]
[1764172050922,13.04098874,136.21,136.2,0.71]
[1764172051123,16.308864,136.24,136.2,0.71]
[1764172051328,13.04098874,136.24,136.2,0.71]
[1764172051550,13.04098874,136.22,136.2,0.71]
[1764172051753,13.04098874,136.21,136.19,3.28]
[1764172051925,13.04098874,136.21,136.19,3.99]
[1764172052125,13.04098874,136.22,136.2,0.71]
[1764172053042,13.04098874,136.22,136.2,8.05177264]
[1764172053562,13.04098874,136.22,136.21,0.71]
[1764172054061,13.73098874,136.22,136.18,7.34300899]
[1764172054356,13.04098874,136.19,136.18,7.34300899]
[1764172054561,0.69,136.22,136.18,8.05300899]
[1764172054734,13.04098874,136.19,136.17,10.62367979]
[1764172054945,13.04098874,136.18,136.13,0.71]
[1764172055153,8.80994492,136.19,136.12,0.71]
[1764172055353,13.04098874,136.13,136.09,0.71]
[1764172055558,13.04098874,136.13,136.1,3.28]
[1764172056033,13.04098874,136.13,136.11,0.71]
[1764172056653,13.04098874,136.14,136.11,0.71]
[1764172056852,13.04098874,136.13,136.11,0.71]
[1764172057235,0.69,136.16,136.11,8.05692155]
[1764172057457,1.99999999,136.25,136.11,8.05692155]
[1764172057458,0.69,136.23,136.15,16.308864]
[1764172057630,22.03507152,136.31,136.2,13.32531188]
[1764172057631,13.04098874,136.26,136.2,13.32531188]
[1764172057831,13.04098874,136.27,136.21,16.32098874]
[1764172058077,13.04098874,136.27,136.21,17.03098874]
[1764172058356,18.33863247,136.33,136.21,17.03098874]
[1764172058357,22.75502933,136.34,136.23,13.04098874]
[1764172058605,13.04098874,136.29,136.23,13.04098874]
[1764172058739,13.04098874,136.29,136.24,0.71]
[1764172058936,13.04098874,136.27,136.25,3.28]
[1764172059139,13.04098874,136.28,136.26,7.3389109]
[1764172059641,13.04098874,136.31,136.27,0.71]
[1764172060162,0.2,136.34,136.29,13.04098874]
[1764172060359,0.2,136.34,136.3,17.03098874]
[1764172060758,0.2,136.34,136.31,0.71]
[1764172061259,13.24098874,136.34,136.31,8.04586883]
[1764172062156,13.24098874,136.34,136.31,7.33586883]
[1764172062367,13.04098874,136.33,136.3,10.61674835]
[1764172062679,13.04098874,136.32,136.29,3.28]
[1764172062874,0.2,136.34,136.3,0.71]
[1764172063077,13.04098874,136.33,136.3,0.71]
[1764172063380,13.24098874,136.34,136.31,7.33621891]
[1764172063562,13.24098874,136.34,136.31,8.04621891]
[1764172063763,13.04098874,136.33,136.3,7.33662657]
[1764172064153,13.04098874,136.32,136.3,7.33662657]
[1764172064676,13.04098874,136.31,136.26,0.66]
[1764172064875,13.04098874,136.32,136.28,3.28]
[1764172065261,9.00994492,136.34,136.29,7.99729547]
[1764172065460,0.2,136.34,136.29,39.38152289]
[1764172065663,13.94098874,136.34,136.29,25.68053415]
[1764172065973,13.04098874,136.32,136.29,7.99729547]
[1764172066381,13.04098874,136.31,136.29,7.99729547]
[1764172066758,13.04098874,136.32,136.29,7.99729547]
[1764172067980,13.04098874,136.33,136.3,0.66]
[1764172069260,13.04098874,136.33,136.3,7.99654321]
[1764172069461,13.04098874,136.32,136.29,7.33712775]
[1764172069660,13.04098874,136.32,136.29,7.99712775]
[1764172069879,13.04098874,136.32,136.3,0.66]
[1764172070614,13.04098874,136.32,136.3,7.9963954]
[1764172070775,0.2,136.34,136.3,7.9963954]
[1764172071091,13.04098874,136.33,136.3,7.9963954]
[1764172071487,0.2,136.34,136.3,7.3363954]
[1764172071693,13.24098874,136.34,136.31,0.66]
[1764172071879,13.04098874,136.33,136.31,0.66]
[1764172073295,13.04098874,136.33,136.31,7.99618796]
[1764172073902,13.04098874,136.33,136.31,0.66]
[1764172074498,13.74098874,136.32,136.26,18.34663753]
[1764172074702,13.04098874,136.32,136.28,10.61747216]
[1764172074873,0.2,136.34,136.28,23.6586621]
[1764172075070,0.2,136.34,136.3,13.04098874]
[1764172075382,0.2,136.34,136.31,3.28]
[1764172075583,0.2,136.34,136.31,3.94]
[1764172075785,0.2,136.34,136.31,3.28]
[1764172075978,0.2,136.34,136.32,0.66]
[1764172076505,13.24098874,136.34,136.32,0.66]
[1764172076991,13.24098874,136.34,136.31,7.33609608]
[1764172077188,13.24098874,136.34,136.31,7.99609608]
[1764172077370,13.24098874,136.34,136.31,0.66]
[1764172077576,13.24098874,136.34,136.31,7.99606614]
[1764172078089,13.24098874,136.34,136.31,0.66]
[1764172078401,13.24098874,136.34,136.31,7.99616498]
[1764172078603,0.2,136.34,136.31,7.99616498]
[1764172078801,13.24098874,136.34,136.31,7.99616498]
[1764172079619,13.24098874,136.34,136.31,26.33671226]
[1764172079780,0.2,136.34,136.32,0.66]
[1764172079980,13.24098874,136.34,136.31,7.99616498]
[1764172080385,13.24098874,136.34,136.31,7.33616498]
[1764172080588,13.24098874,136.34,136.28,13.04098874]
[1764172080589,13.04098874,136.32,136.26,18.34707782]
[1764172080789,0.7,136.33,136.27,3.28]
[1764172080790,13.04098874,136.3,136.27,3.28]
[1764172080989,13.04098874,136.31,136.27,3.94]
[1764172081277,0.2,136.34,136.3,13.04098874]
[1764172081481,0.2,136.34,136.3,3.28]
[1764172081677,0.2,136.34,136.31,13.70098874]
[1764172081882,0.2,136.34,136.31,0.66]
[1764172082077,0.2,136.34,136.32,0.66]
[1764172082903,0.2,136.34,136.32,7.99555012]
[1764172083626,0.2,136.34,136.32,7.33555012]
[1764172083918,0.2,136.34,136.32,7.99555012]
[1764172084218,0.2,136.34,136.32,0.66]
[1764172084917,0.2,136.34,136.32,7.99564808]
[1764172085512,0.2,136.34,136.33,0.69]
[1764172085715,0.2,136.34,136.32,8.02564808]
[1764172086025,0.2,136.34,136.33,0.69]
[1764172086620,0.2,136.34,136.31,7.3360002]
[1764172086621,13.93098874,136.34,136.31,7.3360002]
[1764172087006,13.93098874,136.34,136.3,7.33675715]
[1764172087207,13.73098874,136.33,136.29,3.97]
[1764172087403,13.04098874,136.31,136.29,7.33713498]
[1764172087718,13.04098874,136.33,136.3,0.69]
[1764172087916,13.73098874,136.32,136.28,3.28]
[1764172088298,13.73098874,136.32,136.28,3.97]
[1764172088499,0.2,136.34,136.29,13.73098874]
[1764172088695,13.24098874,136.34,136.29,0.69]
[1764172088909,13.04098874,136.33,136.3,0.69]
[1764172089427,13.04098874,136.32,136.28,11.30729642]
[1764172089597,13.04098874,136.32,136.29,0.69]
[1764172090103,13.04098874,136.33,136.29,0.69]
[1764172090923,13.04098874,136.32,136.29,0.69]
[1764172091308,13.04098874,136.32,136.3,7.33675715]
[1764172091823,13.04098874,136.32,136.3,8.02675715]
[1764172092022,13.04098874,136.32,136.3,7.33675715]
[1764172092225,13.04098874,136.33,136.3,7.33675715]
[1764172092719,13.04098874,136.33,136.3,26.36865003]
[1764172093325,13.04098874,136.33,136.3,8.02675715]
[1764172093505,13.04098874,136.33,136.3,26.36865003]
[1764172093701,0.2,136.34,136.3,26.36865003]
[1764172093905,13.04098874,136.33,136.3,26.36865003]
[1764172094120,13.04098874,136.33,136.3,69.23675715]
[1764172094429,13.04098874,136.33,136.3,69.92675715]
[1764172094628,7.47703575,136.33,136.3,88.26865003]
[1764172094998,7.47703575,136.33,136.3,69.92675715]
[1764172095435,0.2,136.34,136.31,3.97]
[1764172095602,7.67703575,136.34,136.31,65.87]
[1764172095801,7.47703575,136.33,136.32,0.69]
[1764172096002,7.47703575,136.33,136.31,3.28]
[1764172096228,7.67703575,136.34,136.31,3.97]
[1764172096529,8.36703575,136.34,136.31,3.28]
[1764172097633,0.89,136.34,136.31,10.6160588]
[1764172097925,8.36703575,136.34,136.3,73.20653616]
[1764172098518,4.03012956,136.34,136.3,73.20653616]
[1764172098703,3.14012956,136.33,136.3,72.51653616]
[1764172098904,3.14012956,136.32,136.3,72.51653616]
[1764172099207,3.14012956,136.33,136.3,73.20653616]
[1764172100102,0.2,136.34,136.31,0.69]
[1764172100423,4.03012956,136.34,136.31,3.28]
[1764172101134,4.03012956,136.34,136.3,8.02653616]
[1764172101329,4.03012956,136.34,136.3,11.30653616]
[1764172101831,3.14012956,136.32,136.28,0.69]
[1764172102005,3.14012956,136.31,136.28,7.33754132]
[1764172102206,3.83012956,136.31,136.28,7.33754132]
[1764172102608,0.69,136.31,136.27,3.28]
[1764172102808,3.14012956,136.3,136.27,3.28]
[1764172103115,3.14012956,136.3,136.27,3.97]
[1764172103511,3.83012956,136.3,136.27,3.28]
[1764172103722,3.14012956,136.3,136.28,7.33783387]
[1764172104123,19.44899356,136.31,136.28,8.02783387]
[1764172104335,3.14012956,136.33,136.29,0.69]
[1764172105133,3.14012956,136.33,136.29,62.59]
[1764172105510,3.14012956,136.33,136.3,8.02675715]
[1764172106727,3.14012956,136.33,136.26,0.69]
[1764172106728,8.80994492,136.3,136.26,0.69]
[1764172107029,3.14012956,136.27,136.21,0.69]
[1764172107226,8.80994492,136.26,136.2,11.3121439]
[1764172107430,3.14012956,136.24,136.2,10.6221439]
[1764172107634,3.14012956,136.25,136.21,0.69]
[1764172108230,3.14012956,136.23,136.21,0.69]
[1764172108738,3.14012956,136.24,136.21,0.69]
[1764172108919,3.14012956,136.26,136.21,3.83012956]
[1764172109125,3.14012956,136.27,136.22,3.14012956]
[1764172109326,3.14012956,136.27,136.23,3.28]
[1764172109524,3.14012956,136.27,136.23,11.31027376]
[1764172109738,3.14012956,136.28,136.24,0.69]
[1764172111033,8.80994492,136.24,136.19,0.69]
[1764172111363,8.80994492,136.19,136.14,3.97]
[1764172111523,8.80994492,136.14,136.08,0.69]
[1764172111721,8.80994492,136.14,136.05,2.10963385]
[1764172111722,11.95007448,136.09,136.05,2.10963385]
[1764172111917,3.14012956,136.06,136.05,2.10963385]
[1764172112259,3.14012956,136.1,136.06,0.69]
[1764172112415,28.25893848,136.12,136.07,3.14012956]
[1764172112615,7.5000899,136.15,136.1,7.5000899]
[1764172112849,7.5000899,136.19,136.14,7.5000899]
[1764172113020,7.5000899,136.17,136.12,3.28]
[1764172113346,7.5000899,136.15,136.11,3.28]
[1764172113551,7.5000899,136.15,136.11,3.97]
[1764172113736,9.49994492,136.18,136.12,0.69]
[1764172113940,7.5000899,136.15,136.12,0.69]
[1764172114253,7.5000899,136.15,136.11,10.62685027]
[1764172114441,7.5000899,136.15,136.12,0.69]
[1764172114826,7.5000899,136.16,136.12,0.69]
[1764172115021,8.1900899,136.17,136.12,0.69]
[1764172115246,0.69,136.17,136.12,0.69]
[1764172115551,8.1900899,136.17,136.12,0.69]
[1764172116046,8.1900899,136.17,136.13,25.71071769]
[1764172116425,7.5000899,136.15,136.13,7.34591934]
[1764172116725,7.5000899,136.16,136.13,7.34591934]
[1764172117526,7.5000899,136.15,136.13,7.34591934]
[1764172118046,8.80994492,136.08,136.05,2.10963385]
[1764172118346,32.90322196,136.06,135.95,18.38874476]
[1764172118681,32.90322196,136.03,135.98,0.69]
[1764172118825,32.90322196,136.03,135.98,8.04379327]
[1764172119027,7.5000899,136.07,136.02,15.64194992]
[1764172119334,7.5000899,136.05,136.02,7.45186002]
[1764172120044,7.5000899,136.05,136.02,0.1]
[1764172120428,7.5000899,136.08,136.03,8.1900899]